Cogmind - Beta 9.6 @@@ ROGUE MODE // 2020.09.01 @ 20:17:11 Player: Finestep Result: Destroyed by D-53 Grenadier with Mini Grenade Launcher Performance ------------- Evolutions (0) 0 Regions Visited (2) 400 Robots Destroyed (39) 195 Value Destroyed (633) 633 Prototype IDs (0) 0 Alien Tech Used (0) 0 Bonus (-6) -6 TOTAL SCORE: 1222 Bonus ------- Friendly Fire -6 Cogmind --------- Core Integrity 0/250 Matter 245/300 Energy 100/250 System Corruption 0% Temperature Cool (10) Movement Treading (200) Ox2 Location -10/Mines Parts ------- > --- POWER (1) -------- Ion Engine > --- PROPULSION (2) --- Light Treads Wheel > --- UTILITY (2) ------ Large Storage Unit Large Storage Unit > --- WEAPON (2) ------- EMP Blaster EMP Blaster > --- INVENTORY (16) --- Light Nuclear Core Large Storage Unit High-capacity Battery (400) High-capacity Battery (228) Compact Matter Pod (150) Light Armor Plating Light Armor Plating Light Armor Plating Light Assault Rifle Light Assault Rifle Light Assault Rifle Light Assault Rifle Light Assault Rifle EMP Blaster EMP Blaster Rocket Launcher Peak State ------------ > --- POWER ------------ Ion Engine > --- PROPULSION ------- Light Treads Wheel > --- UTILITY ---------- Large Storage Unit Large Storage Unit > --- WEAPON ----------- EMP Blaster EMP Blaster > --- INVENTORY -------- Light Nuclear Core Large Storage Unit High-capacity Battery High-capacity Battery Compact Matter Pod Light Armor Plating Light Armor Plating Light Armor Plating Light Assault Rifle Light Assault Rifle Light Assault Rifle Light Assault Rifle Light Assault Rifle EMP Blaster EMP Blaster Rocket Launcher [Rating: 11] Favorites ----------- Power Ion Engine Engine Ion Engine Propulsion Light Treads Treads Light Treads Wheel Wheel Utility Large Storage Unit Storage Large Storage Unit Weapon Light Assault Rifle Ballistic Gun Light Assault Rifle Launcher EMP Blaster Build | -11 -10 -10 ------- Run | Scr Mat Min Slots Evolved . | . . . Power . | . . . Propulsion . | . . . Utility . | . . . Weapon . | . . . Parts Attached 25 | 7 15 3 Power 2 | 1 . 1 Engine 2 | 1 . 1 Core . | . . . Reactor . | . . . Propulsion 4 | 2 2 . Treads 3 | 2 1 . Leg . | . . . Wheel 1 | . 1 . Hover . | . . . Flight . | . . . Utility 6 | 2 4 . Device . | . . . Storage 6 | 2 4 . Processor . | . . . Hackware . | . . . Protection . | . . . Artifact . | . . . Weapon 13 | 2 9 2 Energy Gun . | . . . Energy Cannon . | . . . Ballistic Gun 10 | 2 8 . Ballistic Cannon . | . . . Launcher 3 | . 1 2 Special Weapon . | . . . Impact Weapon . | . . . Slashing Weapon . | . . . Piercing Weapon . | . . . Special Melee Weapon . | . . . Unidentified Prototypes . | . . . Parts Lost 4 | . 3 1 Power 1 | . . 1 Propulsion 2 | . 2 . Utility . | . . . Weapon 1 | . 1 . Highest Loss Streak 1 | . 1 1 Average Slot Usage (%) 93 | . 91 99 Engine 13 | . 14 13 Treads 17 | . 18 14 Wheel 3 | . 1 14 Storage 28 | . 28 28 Ballistic Gun 26 | . 27 22 Launcher 1 | . . 5 Naked Turns . | . . . Heaviest Build 45 | 16 39 45 Greatest Support 40 | 40 40 20 Greatest Overweight (x) 4 | . 1 4 Average Overweight (x) 1 | . . 3 Largest Inventory Capacity 16 | 8 16 16 Average Capacity 12 | 6 12 16 Most Carried 16 | 3 14 16 Average Carried 11 | 1 10 15 Final Capacity 16 | 8 16 16 Final Carried 16 | 2 14 16 Class Distribution -------------------- 100% | Mutant Dominant Class ---------------- Mutant | -10/Materials Mutant | -10/Mines Resources | -11 -10 -10 ----------- Run | Scr Mat Min Matter Collected 761 | 306 410 45 Remotely . | . . . Salvage Created 1184 | 132 926 126 Parts 71 | 5 58 8 Haulers Intercepted 2 | . 2 . Recyclers Shooed 3 | . 3 . Parts Field Recycled . | . . . Retrieved Matter . | . . . Parts Self-Destructed . | . . . Prevented . | . . . Kills | -11 -10 -10 ------- Run | Scr Mat Min Combat Hostiles Destroyed 23 | . 22 1 Guns 18 | . 18 . AOE 5 | . 4 1 Classes Destroyed 9 | 3 5 1 Worker 5 | 1 3 1 Tunneler 3 | 2 1 . Hauler 2 | . 2 . Recycler 3 | 1 1 1 Operator 1 | . 1 . Watcher 2 | . 2 . Swarmer 11 | . 11 . Grunt 11 | . 11 . Demolisher 1 | . . 1 Best Kill Streak 6 | 3 6 2 Combat Bots Only 5 | . 5 1 Max Kills in Single Turn 3 | 1 3 2 Gunslinging . | . . . Exploded 2 | . 2 1 Melee . | . . . Uniques/NPCs Destroyed . | . . . Combat | -11 -10 -10 -------- Run | Scr Mat Min Damage Taken 999 | . 822 177 Core 263 | . 156 107 Absorbed by Shields . | . . . Core Remaining (%) 100 | 100 . . Volleys Fired 120 | 9 100 11 Largest 2 | 2 2 2 Hottest 66 | 40 40 66 Shots Fired 235 | 18 195 22 Gun 223 | 18 193 12 Cannon . | . . . Launcher 12 | . 2 10 Special . | . . . Kinetic 223 | 18 193 12 Thermal . | . . . Explosive . | . . . Electromagnetic 12 | . 2 10 Robot Hit Streak 13 | 5 13 4 Robot Miss Streak 3 | 2 3 2 Penetration Max . | . . . Secondary Targets 1 | . 1 . Max Gunslinging Chain 1 | . 1 . Shots Hit Robots 135 | 12 115 8 Core Hits 67 | 7 54 6 Critical Hits 2 | . 1 1 Critical Kills 1 | . . 1 Critical Parts Destroyed 1 | . 1 . Melee Attacks . | . . . Impact . | . . . Slashing . | . . . Piercing . | . . . Sneak Attacks . | . . . Combat Hostiles . | . . . Follow-up Attacks . | . . . Damage Inflicted 1465 | 121 1131 213 Guns 1229 | 121 1048 60 Cannons . | . . . Explosions 236 | . 83 153 Melee . | . . . Ramming . | . . . Kinetic 1229 | 121 1048 60 Thermal 22 | . 22 . Explosive . | . . . Electromagnetic 214 | . 61 153 Impact . | . . . Slashing . | . . . Piercing . | . . . Highest Corruption . | . . . Average Corruption . | . . . Corruption Purged . | . . . Overload Shots . | . . . Overflow Damage 11 | . . 11 Projectiles . | . . . Explosions 11 | . . 11 Melee . | . . . Knockbacks . | . . . Impact . | . . . Kinetic . | . . . Secondary . | . . . Self-Inflicted Damage 10 | . 6 4 Shots 2 | . 1 1 Rammed . | . . . Targets Rammed . | . . . Kicked . | . . . Crushed . | . . . Highest Temperature 12 | . 12 12 Average Temperature 6 | . 6 5 Received Heat Transfer 171 | . 162 9 Siege Activations . | . . . Robots Corrupted . | . . . Combat Hostiles . | . . . Parts Fried . | . . . Impact Corruptions . | . . . Robots Melted . | . . . Combat Hostiles . | . . . Parts Melted . | . . . Heat Transferred 50 | . 50 . Parts Sabotaged . | . . . Parts Stolen . | . . . Parts Stripped . | . . . Power Chain Reactions 2 | . 1 1 Missiles Intercepted . | . . . Alert | -11 -10 -10 ------- Run | Scr Mat Min Peak Influence 314 | 20 314 79 Average Influence 109 | 4 132 48 Maximum Alert Level 1 | . 1 . Low Security (%) 80 | 100 74 100 Level 1 19 | . 25 . Level 2 . | . . . Level 3 . | . . . Level 4 . | . . . Level 5 . | . . . High Security . | . . . Max Security . | . . . Squads Dispatched 6 | . 6 . Investigation 3 | . 3 . Extermination . | . . . Reinforcement 3 | . 3 . Assault . | . . . Garrison . | . . . Intercept . | . . . Construction Impeded . | . . . Haulers Reinforced . | . . . Stealth | -11 -10 -10 --------- Run | Scr Mat Min Distress Signals 4 | . 4 . Communications Jammed . | . . . Distress Signals . | . . . Times Spotted 52 | . 48 4 Peak Tracking Total 8 | . 8 2 Tactical Retreats 3 | . 3 . Traps | -11 -10 -10 ------- Run | Scr Mat Min Traps Triggered 2 | . 2 . Indirectly . | . . . Trap Hack Attempts . | . . . Triggered . | . . . Disarmed . | . . . Reprogrammed . | . . . Reused . | . . . Traps Extracted . | . . . Installed . | . . . Triggered . | . . . Machines | -11 -10 -10 ---------- Run | Scr Mat Min Machines Disabled . | . . . Max in Single Turn . | . . . Machines Sabotaged . | . . . Garrisons Compromised . | . . . Overloaded Fab Kills . | . . . Fab Network Shutdowns . | . . . Hacking | -11 -10 -10 --------- Run | Scr Mat Min Machines Accessed 6 | . 6 . Terminals 4 | . 4 . Fabricators . | . . . Repair Stations . | . . . Recycling Units 2 | . 2 . Scanalyzers . | . . . Garrison Access . | . . . Total Hacks 22 | . 22 . Successful 9 | . 9 . Failed 13 | . 13 . Catastrophic . | . . . Database Lockouts . | . . . Manual 10 | . 10 . Terminals 17 | . 17 . Fabricators . | . . . Repair Stations . | . . . Recycling Units 5 | . 5 . Scanalyzers . | . . . Garrison Access . | . . . Terminal Hacks 7 | . 7 . Robot Analysis 1 | . 1 . Unreport Threat 1 | . 1 . Locate Traps 1 | . 1 . Transport Status 1 | . 1 . Hauler Manifests 1 | . 1 . Zone Layout 2 | . 2 . Fabricator Hacks . | . . . Repair Station Hacks . | . . . Recycling Unit Hacks 2 | . 2 . Retrieve Matter 1 | . 1 . Retrieve Components 1 | . 1 . Scanalyzer . | . . . Garrison Access Hacks . | . . . Unauthorized Hacks . | . . . Terminals . | . . . Fabricators . | . . . Repair Stations . | . . . Recycling Units . | . . . Scanalyzers . | . . . Garrison Access . | . . . Data Cores Recovered . | . . . Used . | . . . Hacking Detections 6 | . 6 . Full Trace Events 1 | . 1 . Feedback Events . | . . . Feedback Blocked . | . . . Robot Schematics Acquired . | . . . Robots Built . | . . . Matter . | . . . Time . | . . . Total Robot Build Rating . | . . . Part Schematics Acquired . | . . . Parts Built . | . . . Matter . | . . . Time . | . . . Total Part Build Rating . | . . . Parts Repaired . | . . . Time . | . . . Parts Recycled . | . . . Recycled Matter . | . . . Retrieved Matter . | . . . Retrieved Components 9 | . 9 . Parts Scanalyzed . | . . . Part Schematics Acquired . | . . . Parts Damaged . | . . . Bothacking | -11 -10 -10 ------------ Run | Scr Mat Min Used RIF Installer . | . . . Robots Hacked . | . . . Non-combat . | . . . Combat . | . . . Robot Hacks Applied . | . . . Relay Couplers Released . | . . . Robots Rewired . | . . . Allies Hacked . | . . . Hacks Repelled . | . . . Allies | -11 -10 -10 -------- Run | Scr Mat Min Total Allies . | . . . Largest Group . | . . . Highest-Rated Group . | . . . Highest-Rated Ally . | . . . Total Orders . | . . . Ally Attacks . | . . . Total Damage . | . . . Kills . | . . . Allies Corrupted . | . . . Allies Melted . | . . . Intel | -11 -10 -10 ------- Run | Scr Mat Min Robot Analysis Total 1 | . 1 . Derelict Logs Recovered 3 | . . 3 Drone Launches . | . . . Drone Recoveries . | . . . Exploration | -11 -10 -10 ------------- Run | Scr Mat Min Turns Passed 1970 | 102 1485 383 Spaces Moved 1003 | 44 661 298 Core 5 | 5 . . Treads 715 | 39 661 15 Legs . | . . . Wheels 283 | . . 283 Hover . | . . . Flight . | . . . Fastest Speed 50 | 50 160 110 Average Speed 154 | 147 173 115 Slowest Speed 180 | 160 180 180 Overloaded Moves . | . . . Propulsion Burnouts . | . . . Robots Hopped . | . . . Cave-ins Triggered . | . . . Exploration Rate (%) 52 | 5 88 65 Regions Visited 2 Branch Regions 1 Pre-discovered Areas . | . . . Known Exits Taken . | . . . Unknown Exits Taken 2 | 1 1 . Scrap Searched 1 | . . 1 Spaces Dug . | . . . Terrain Destroyed 2 | . 2 . Melee . | . . . Projectile . | . . . AOE 2 | . 2 . Actions | -11 -10 -10 --------- Run | Scr Mat Min Total 1217 | 62 836 319 Wait 35 | . 35 . Move 1001 | 43 660 298 Hop . | . . . Pick Up 24 | 3 16 5 Fast Attach 8 | 6 2 . Attach 5 | 1 3 1 Detach . | . . . Swap 12 | . 10 2 Drop 12 | . 10 2 Fire 120 | 9 100 11 Melee . | . . . Ram . | . . . Kick . | . . . Crush . | . . . Escape Stasis . | . . . Rewire . | . . . Trap . | . . . Miscellaneous . | . . . Route ------- -11/Scrapyard -10/Materials (discovered 4 exits: [*Mat x3] / [*Min]) -10/Mines (discovered 2 exits: [*Mat x2]) History --------- Turn | Location | Event 3 | -11/Scrapyard | Discovered new exit (range 16) 103 | -11/Scrapyard | Entered Materials 310 | -10/Materials | Build established: Mutant 677 | -10/Materials | Discovered new exit (range 16) 736 | -10/Materials | Core integrity fell below 50% 1183 | -10/Materials | Discovered new exit (range 7) 1442 | -10/Materials | Discovered new exit (range 14) 1491 | -10/Materials | Discovered new exit (range 10) 1588 | -10/Materials | Entered Mines 1640 | -10/Mines | Learned location of 1 exit from Materials 1644 | -10/Mines | Learned 4 Materials zone layouts 1690 | -10/Mines | Discovered new exit (range 10) 1700 | -10/Mines | Learned Materials stockpile data 1765 | -10/Mines | Received a Rocket Launcher from a helpful Derelict 1794 | -10/Mines | Assembled infested the area 1799 | -10/Mines | Assisted by a Guerilla fighting off Assembled 1838 | -10/Mines | Discovered new exit (range 8) 1967 | -10/Mines | Core integrity fell below 20% 1971 | -10/Mines | Destroyed by D-53 Grenadier with Mini Grenade Launcher Last Messages --------------- 01834_ K-01 Serf collects debris. 01837_ R-06 Scavenger collects Lgt. Ion Engine. 01838_ EXIT=FOUND 01839_ K-01 Serf collects debris. 01927_ U-05 Engineer builds a Wall. 01931_ U-05 Engineer lays Concrete. 01933_ U-05 Engineer builds a Wall. 01937_ U-05 Engineer lays Concrete. 01941_ Acquired 5 matter. 01941_ U-05 Engineer lays Concrete. 01948_ K-01 Serf collects debris. 01953_ K-01 Serf destroyed. 01953_ D-53 Grenadier destroyed. 01958_ Chain reaction triggered in Lgt. Ion Engine. 01964_ Dropped Hcp. Battery. 01965_ Extracted 182 energy. 01965_ Acquired Hcp. Battery. 01966_ Destroyed Lgt. Deuterium Engine. 01969_ T-07 Excavator destroyed. 01969_ Destroyed Shock Absorption System. Map ----- +----------------------------------------------------+ | ???????# #??????# #??????# ###?????? | | ??????? #??????# ##?????# ### ##???????? | | ?????? ??????# ###?????????#### #????????? | | ?????# ??????# ##???????????## #????????# | | ????? ??????# #???????????## #????????# | | ???? ??????## ##?????????## ##????????# | | ??? ???????### ##???????## #?????????# | | ??? ? ?????????##% ##??????# #?????????? | | ?? ?## ##?????##### ###????# ##?????????? | | ?# ???? ???????# ## ##???## ##??????????? | | ?###??## ######## # #????####???????????? | | ?????# ## #???????????????????? | | ?????# #####???????????????????? | | ?????? """" ##???????????????????????? | | ???????????"""" # % #???????????????????????? | | ???????????""""?# # #???????????????????????? | | ????????????##??## #???????????????????????? | | ?????????????????## ####???????????????????????? | | ?????????????????# #??????????????????????????? | | ?????????????????### ####???????????????????????? | | ?????????????????## # ####?????????#??????????? | | ?????????????????# # ##????? ???????????? | | ?????????????????## #?? ## ?????????? | | ??????????????????# # !% ????????? | | ??????????????????# ! % ????????? | | ??????????????????## # @ d # ! ?????????? | | ???????????????????# % % ! # #????????????? | | ???????????????????## = # #???????????? | | ????????????????????## #???????????????? | | ?????????????????????### # #???????????????? | | ???????????????????????###### #??????????????? | | ?????????????????????????????? =%!#??????????????? | | ??????????????????????????????? =##??????????????? | | ????????????????????????????????##???????????????? | | ?????????????????????????????????????????????????? | | ?????????????????????????????????????????????????? | | ?????????????????????????????????????????????????? | | ?????????????????????????????????????????????????? | | ?????????????????????????????????????????????????? | | ?????????????????????????????????????????????????? | | ?????????????????????????????????????????????????? | | ?????????????????????????????????????????????????? | | ?????????????????????????????????????????????????? | | ?????????????????????????????????????????????????? | | ?????????????????????????????????????????????????? | | ?????????????????????????????????????????????????? | | ?????????????????????????????????????????????????? | | ?????????????????????????????????????????????????? | | ?????????????????????????????????????????????????? | | ?????????????????????????????????????????????????? | +----------------------------------------------------+ Best States ------------- Heat Dissipation 25 Energy Generation 10 Energy Capacity 250 Matter Stores 300 Matter Capacity 300 Sight Range 16 Terrain Scan Density 10 Evasion (%) 40 Recoil Reduction 2 Item Schematics ----------------- None Robot Schematics ------------------ None Fabricated ------------ Nothing Alien Tech Used ----------------- None Achievements -------------- None Challenges ------------ None Game ------ Seed GammaIntegrityStreamer Manual? 0 Play Time 00:11:42 Cumulative 440.1 hours Start 2020.09.01 @ 20:07:35 End 2020.09.01 @ 20:17:11 Sessions 1 Manual Loads 0 Difficulty Rogue Special Mode None Game No. 296 Rogue 296 Adventurer 0 Explorer 0 Win Type - Total 4 Types 4/0/0/0/0/0/0 Lore% 86 Gallery% 86 Achievement% 66 Wizard Run 0 Options --------- ASCII 0 Keyboard 0 Movement Mouse Keybinds 1 Fullscreen 2 Font 24/Smallcaps Map View 76x50 Tactical HUD 1 Map Filters NONE Filters NONE Steam 1 RUN: 53f5fa77-c874-40a8-87b1-6fc99086b1af